[Event "White Rook U14 Final 2019"]
[Site "Sochi"]
[Date "2019.06.08"]
[Round "7.30"]
[White "Ivanov, Matvei"]
[Black "Soucek, Jan"]
[Result "1/2-1/2"]
[ECO "C60"]
[WhiteElo "1529"]
[BlackElo "1543"]
[Annotator "NA"]
[PlyCount "133"]
[EventDate "2019.06.02"]
[EventCountry "RUS"]
[SourceTitle "playchess.com"]
[Source "ChessBase"]
[SourceQuality "1"]
[TimeControl "5400+30"]

1. e4 {[%emt 0:00:00]} e5 {[%emt 0:00:32]} 2. Nf3 {[%emt 0:00:00]} Nc6 {[%emt 0:00:32]} 3. Bb5 {[%emt 0:00:08]} g6 {[%emt 0:01:53]} 4. O-O {[%emt 0:02:29]} Bg7 {[%emt 0:00:08]} 5. c3 {[%emt 0:00:08]} Nge7 {[%emt 0:05:31]} 6. d4 {[%emt 0:04:16]} exd4 {[%emt 0:10:54]} 7. cxd4 {[%emt 0:00:00]} O-O {[%emt 0:00:32]} 8. Nc3 {[%emt 0:02:57]} d6 {[%emt 0:00:31]} 9. Re1 {[%emt 0:03:13]} Bg4 {[%emt 0:01:53]} 10. Be3 {[%emt 0:10:54]} h6 {[%emt 0:04:02]} 11. Qd2 {[%emt 0:03:05]} Kh7 {[%emt 0:01:39]} 12. d5 {[%emt 0:01:22]} Bxf3 {[%emt 0:13:14]} 13. gxf3 {[%emt 0:00:32]} Ne5 {[%emt 0:03:40]} 14. Be2 {[%emt 0:01:58]} f5 {[%emt 0:02:28]} 15. f4 {[%emt 0:01:25]} Nd7 {[%emt 0:01:19]} 16. f3 {[%emt 0:00:39]} a6 {[%emt 0:09:32]} 17. Kh1 {[%emt 0:04:51]} Nf6 {[%emt 0:09:56]} 18. Rad1 {[%emt 0:05:37]} Nh5 {[%emt 0:01:30]} 19. Rg1 {[%emt 0:02:58]} Ng8 {[%emt 0:00:15]} 20. Rg2 {[%emt 0:01:40]} Qh4 {[%emt 0:16:36]} 21. Rdg1 {[%emt 0:01:30]} Ne7 {[%emt 0:03:08]} 22. Bd1 {[%emt 0:01:09]} b5 {[%emt 0:00:05]} 23. Ne2 {[%emt 0:00:33]} Rae8 {[%emt 0:00:32]} 24. Bf2 {[%emt 0:07:41]} Qf6 {[%emt 0:03:14]} 25. Bd4 {[%emt 0:04:15]} Qh4 {[%emt 0:01:10]} 26. Bxg7 {[%emt 0:02:29]} Nxg7 {[%emt 0:04:52]} 27. e5 {[%emt 0:00:10]} dxe5 {[%emt 0:00:20]} 28. fxe5 {[%emt 0:03:10]} Rd8 {[%emt 0:00:38]} 29. d6 {[%emt 0:00:29]} cxd6 {[%emt 0:03:24]} 30. exd6 {[%emt 0:01:23]} Rf6 {[%emt 0:00:04]} 31. d7 {[%emt 0:01:25]} Ne6 {[%emt 0:00:56]} 32. Qd6 {[%emt 0:01:04]} Ng8 {[%emt 0:00:04]} 33. Qxa6 {[%emt 0:00:47]} Rxd7 {[%emt 0:00:32]} 34. Qxb5 {[%emt 0:01:30]} Rg7 {[%emt 0:00:54]} 35. Bb3 {[%emt 0:00:03]} Ng5 {[%emt 0:00:03]} 36. Bxg8+ {[%emt 0:00:02]} Rxg8 {[%emt 0:00:02]} 37. Rd1 {[%emt 0:00:02]} Rg7 {[%emt 0:00:05]} 38. Ng1 {[%emt 0:00:02]} Re6 {[%emt 0:00:36]} 39. Rd7 {[%emt 0:01:10]} Ree7 {[%emt 0:01:44]} 40. Rxe7 {[%emt 0:00:02]} Rxe7 {[%emt 0:00:02]} 41. Qc5 {[%emt 0:00:02]} Qe1 {[%emt 0:00:03]} 42. Qf2 {[%emt 0:00:03]} Qb1 {[%emt 0:00:02]} 43. a3 {[%emt 0:00:02]} f4 {[%emt 0:01:53]} 44. Qh4 {[%emt 0:04:49]} Qf5 {[%emt 0:00:08]} 45. Qg4 {[%emt 0:00:11]} Qf6 {[%emt 0:00:52]} 46. h4 {[%emt 0:00:06]} Nf7 {[%emt 0:00:05]} 47. h5 {[%emt 0:00:04]} g5 {[%emt 0:00:03]} 48. Qc8 {[%emt 0:00:04]} Ne5 {[%emt 0:00:05]} 49. Qc2+ {[%emt 0:00:07]} Kg7 {[%emt 0:00:03]} 50. b4 {[%emt 0:00:03]} g4 {[%emt 0:00:02]} 51. fxg4 {[%emt 0:00:11]} f3 {[%emt 0:00:04]} 52. Rf2 {[%emt 0:00:33]} Nxg4 {[%emt 0:00:14]} 53. Rxf3 {[%emt 0:00:43]} Qh4+ {[%emt 0:01:37]} 54. Rh3 {[%emt 0:00:32]} Nf2+ {[%emt 0:02:17]} 55. Kg2 {[%emt 0:00:25]} Nxh3 {[%emt 0:00:30]} 56. Qg6+ {[%emt 0:01:02]} Kf8 {[%emt 0:00:30]} 57. Qf5+ {[%emt 0:02:27]} Rf7 {[%emt 0:00:26]} 58. Qc8+ {[%emt 0:00:05]} Kg7 {[%emt 0:00:34]} 59. Qc3+ {[%emt 0:00:21]} Kh7 {[%emt 0:00:30]} 60. Qc2+ {[%emt 0:01:05]} Kh8 {[%emt 0:00:30]} 61. Qc8+ {[%emt 0:00:56]} Kg7 {[%emt 0:00:30]} 62. Qc3+ {[%emt 0:01:05]} Kf8 {[%emt 0:00:17]} 63. Qh8+ {[%emt 0:01:49]} Ke7 {[%emt 0:00:40]} 64. Qe5+ {[%emt 0:00:19]} Kf8 {[%emt 0:00:30]} 65. Qh8+ {[%emt 0:00:21]} Ke7 {[%emt 0:00:33]} 66. Qe5+ {[%emt 0:00:32]} Kf8 {[%emt 0:00:30]} 67. Qh8+ {[%emt 0:00:04]} 1/2-1/2

[Event "White Rook U14 Final 2019"]
[Site "Sochi"]
[Date "2019.06.08"]
[Round "7.31"]
[White "Hrbek, Jachym"]
[Black "Valiev, Ravil"]
[Result "0-1"]
[ECO "A15"]
[WhiteElo "1394"]
[BlackElo "1458"]
[Annotator "NA"]
[PlyCount "94"]
[EventDate "2019.06.02"]
[EventCountry "RUS"]
[SourceTitle "playchess.com"]
[Source "ChessBase"]
[SourceQuality "1"]
[TimeControl "5400+30"]

1. Nf3 {[%emt 0:00:00]} Nf6 {[%emt 0:00:24]} 2. c4 {[%emt 0:01:28]} g6 {[%emt 0:02:02]} 3. g3 {[%emt 0:02:44]} Bg7 {[%emt 0:00:32]} 4. Bg2 {[%emt 0:01:37]} O-O {[%emt 0:00:49]} 5. O-O {[%emt 0:01:37]} d6 {[%emt 0:01:23]} 6. b3 {[%emt 0:05:35]} Nc6 {[%emt 0:02:33]} 7. Bb2 {[%emt 0:03:46]} e5 {[%emt 0:04:02]} 8. d3 {[%emt 0:03:12]} Rb8 {[%emt 0:04:58]} 9. Nc3 {[%emt 0:05:31]} a6 {[%emt 0:02:49]} 10. Nd2 {[%emt 0:02:33]} Bd7 {[%emt 0:01:13]} 11. Nde4 {[%emt 0:07:10]} b5 {[%emt 0:08:13]} 12. c5 {[%emt 0:02:17]} Nxe4 {[%emt 0:12:03]} 13. Nxe4 {[%emt 0:02:36]} d5 {[%emt 0:02:45]} 14. Nd2 {[%emt 0:03:39]} Be6 {[%emt 0:02:53]} 15. f4 {[%emt 0:03:40]} f6 {[%emt 0:06:26]} 16. Rf3 {[%emt 0:02:17]} Qd7 {[%emt 0:02:32]} 17. Qf1 {[%emt 0:06:07]} Bg4 {[%emt 0:07:01]} 18. Rf2 {[%emt 0:01:25]} Nb4 {[%emt 0:03:55]} 19. h3 {[%emt 0:02:43]} Be6 {[%emt 0:02:45]} 20. Rf3 {[%emt 0:01:10]} d4 {[%emt 0:02:12]} 21. g4 {[%emt 0:06:05]} Bd5 {[%emt 0:05:23]} 22. Rg3 {[%emt 0:01:00]} Bxg2 {[%emt 0:05:32]} 23. Rxg2 {[%emt 0:00:35]} Nc2 {[%emt 0:00:05]} 24. c6 {[%emt 0:00:35]} Qe8 {[%emt 0:01:06]} 25. Qf3 {[%emt 0:03:32]} Nxa1 {[%emt 0:01:31]} 26. Bxa1 {[%emt 0:08:26]} Rb6 {[%emt 0:01:19]} 27. Qd5+ {[%emt 0:00:37]} Kh8 {[%emt 0:00:53]} 28. Rf2 {[%emt 0:01:26]} Qxc6 {[%emt 0:00:43]} 29. Qxc6 {[%emt 0:01:53]} Rxc6 {[%emt 0:00:50]} 30. Rf1 {[%emt 0:00:53]} Rc2 {[%emt 0:00:16]} 31. Ne4 {[%emt 0:01:20]} Kg8 {[%emt 0:01:11]} 32. fxe5 {[%emt 0:00:39]} fxe5 {[%emt 0:02:01]} 33. Rb1 {[%emt 0:01:20]} h6 {[%emt 0:00:14]} 34. Ng3 {[%emt 0:00:28]} Rxa2 {[%emt 0:01:37]} 35. Bb2 {[%emt 0:01:41]} Rf7 {[%emt 0:00:35]} 36. Ne4 {[%emt 0:00:25]} Bf8 {[%emt 0:00:07]} 37. e3 {[%emt 0:01:15]} c5 {[%emt 0:01:00]} 38. h4 {[%emt 0:02:54]} Be7 {[%emt 0:04:53]} 39. h5 {[%emt 0:02:21]} gxh5 {[%emt 0:00:36]} 40. gxh5 {[%emt 0:00:25]} Rf3 {[%emt 0:00:11]} 41. Kg2 {[%emt 0:00:40]} Rxe3 {[%emt 0:01:03]} 42. Nf2 {[%emt 0:00:16]} Re2 {[%emt 0:01:34]} 43. Rg1 {[%emt 0:00:38]} Bg5 {[%emt 0:00:36]} 44. Kf3 {[%emt 0:03:14]} Rxf2+ {[%emt 0:00:34]} 45. Kxf2 {[%emt 0:00:53]} Rxb2+ {[%emt 0:00:12]} 46. Kf3 {[%emt 0:00:06]} a5 {[%emt 0:01:07]} 47. Rc1 {[%emt 0:01:09]} Bxc1 {[%emt 0:00:23]} 0-1

[Event "White Rook U14 Final 2019"]
[Site "Sochi"]
[Date "2019.06.08"]
[Round "7.32"]
[White "Magizova, Yana"]
[Black "Hrbkova, Johana"]
[Result "1-0"]
[ECO "A22"]
[WhiteElo "1585"]
[BlackElo "1085"]
[Annotator "NA"]
[PlyCount "69"]
[EventDate "2019.06.02"]
[EventCountry "RUS"]
[SourceTitle "playchess.com"]
[Source "ChessBase"]
[SourceQuality "1"]
[TimeControl "5400+30"]

1. e4 {[%emt 0:00:00]} e5 {[%emt 0:00:07]} 2. c4 {[%emt 0:00:08]} Nf6 {[%emt 0:02:58]} 3. Nc3 {[%emt 0:00:08]} Bb4 {[%emt 0:02:13]} 4. d3 {[%emt 0:01:04]} h6 {[%emt 0:05:16]} 5. h3 {[%emt 0:01:22]} Nc6 {[%emt 0:03:50]} 6. a3 {[%emt 0:01:12]} Bc5 {[%emt 0:01:13]} 7. g4 {[%emt 0:01:21]} d6 {[%emt 0:04:59]} 8. Bg2 {[%emt 0:00:40]} O-O {[%emt 0:10:43]} 9. Nge2 {[%emt 0:01:45]} Nh7 {[%emt 0:01:12]} 10. b4 {[%emt 0:02:59]} Bb6 {[%emt 0:02:40]} 11. Nd5 {[%emt 0:02:09]} Be6 {[%emt 0:05:31]} 12. Nxb6 {[%emt 0:00:16]} axb6 {[%emt 0:00:16]} 13. Be3 {[%emt 0:00:50]} Qf6 {[%emt 0:03:31]} 14. O-O {[%emt 0:00:40]} Ng5 {[%emt 0:01:28]} 15. f4 {[%emt 0:01:13]} exf4 {[%emt 0:09:28]} 16. Nxf4 {[%emt 0:00:55]} Nh7 {[%emt 0:08:04]} 17. Qc1 {[%emt 0:08:13]} Nd4 {[%emt 0:07:29]} 18. Qd1 {[%emt 0:04:14]} Nc6 {[%emt 0:03:55]} 19. Nxe6 {[%emt 0:07:39]} Qxe6 {[%emt 0:00:08]} 20. Qc1 {[%emt 0:02:25]} Qg6 {[%emt 0:02:53]} 21. d4 {[%emt 0:00:16]} h5 {[%emt 0:03:15]} 22. gxh5 {[%emt 0:00:25]} Qxh5 {[%emt 0:07:52]} 23. Qe1 {[%emt 0:00:32]} Rfe8 {[%emt 0:00:12]} 24. Kh2 {[%emt 0:01:23]} Re7 {[%emt 0:00:44]} 25. Qg3 {[%emt 0:01:47]} Nb8 {[%emt 0:06:25]} 26. Rf4 {[%emt 0:01:19]} Re6 {[%emt 0:01:09]} 27. Bf3 {[%emt 0:03:11]} Qh6 {[%emt 0:01:45]} 28. Bg4 {[%emt 0:04:55]} Re7 {[%emt 0:01:38]} 29. Bf5 {[%emt 0:01:17]} Qg5 {[%emt 0:01:54]} 30. Rg4 {[%emt 0:00:19]} Qf6 {[%emt 0:00:15]} 31. Rg1 {[%emt 0:00:30]} Re8 {[%emt 0:00:29]} 32. Bxh7+ {[%emt 0:00:26]} Kxh7 {[%emt 0:01:23]} 33. Rxg7+ {[%emt 0:00:36]} Kh8 {[%emt 0:00:14]} 34. Rg8+ {[%emt 0:00:05]} Rxg8 {[%emt 0:00:11]} 35. Qxg8# {[%emt 0:00:10]} 1-0

[Event "White Rook U14 Final 2019"]
[Site "Sochi"]
[Date "2019.06.08"]
[Round "7.33"]
[White "Nosachev, Daniil"]
[Black "Lotnik, Vladislav"]
[Result "1/2-1/2"]
[ECO "C11"]
[WhiteElo "1719"]
[BlackElo "1490"]
[Annotator "NA"]
[PlyCount "131"]
[EventDate "2019.06.02"]
[EventCountry "RUS"]
[SourceTitle "playchess.com"]
[Source "ChessBase"]
[SourceQuality "1"]
[TimeControl "5400+30"]

1. e4 {[%emt 0:00:00]} e6 {[%emt 0:00:16]} 2. d4 {[%emt 0:00:00]} d5 {[%emt 0:00:08]} 3. Nc3 {[%emt 0:00:00]} Nf6 {[%emt 0:00:08]} 4. e5 {[%emt 0:00:08]} Nfd7 {[%emt 0:00:00]} 5. f4 {[%emt 0:00:16]} c5 {[%emt 0:00:00]} 6. Nf3 {[%emt 0:00:08]} Nc6 {[%emt 0:00:08]} 7. Be3 {[%emt 0:00:08]} Qb6 {[%emt 0:01:05]} 8. Na4 {[%emt 0:01:54]} Qa5+ {[%emt 0:01:39]} 9. c3 {[%emt 0:00:16]} cxd4 {[%emt 0:00:24]} 10. b4 {[%emt 0:00:00]} Qc7 {[%emt 0:04:35]} 11. Nxd4 {[%emt 0:02:12]} Nxd4 {[%emt 0:01:16]} 12. Bxd4 {[%emt 0:02:01]} Be7 {[%emt 0:02:33]} 13. Bd3 {[%emt 0:00:24]} b6 {[%emt 0:03:55]} 14. O-O {[%emt 0:00:24]} g6 {[%emt 0:01:37]} 15. a3 {[%emt 0:12:27]} Bb7 {[%emt 0:25:11]} 16. Qg4 {[%emt 0:03:15]} Bc6 {[%emt 0:11:39]} 17. Nb2 {[%emt 0:07:10]} b5 {[%emt 0:07:52]} 18. Rae1 {[%emt 0:03:48]} Nb6 {[%emt 0:11:11]} 19. Qe2 {[%emt 0:18:23]} Nc4 {[%emt 0:06:06]} 20. Bxc4 {[%emt 0:02:24]} dxc4 {[%emt 0:00:57]} 21. a4 {[%emt 0:06:00]} a6 {[%emt 0:01:23]} 22. a5 {[%emt 0:01:01]} Qb7 {[%emt 0:00:49]} 23. Rf2 {[%emt 0:04:33]} Bd8 {[%emt 0:08:04]} 24. Nd1 {[%emt 0:07:14]} Bc7 {[%emt 0:02:57]} 25. Ne3 {[%emt 0:02:28]} h5 {[%emt 0:00:29]} 26. h3 {[%emt 0:09:25]} O-O-O {[%emt 0:02:53]} 27. Nc2 {[%emt 0:02:15]} Bb8 {[%emt 0:02:59]} 28. Qe3 {[%emt 0:00:09]} Rd7 {[%emt 0:00:54]} 29. Rd2 {[%emt 0:00:35]} Rhd8 {[%emt 0:01:16]} 30. Red1 {[%emt 0:00:56]} Be4 {[%emt 0:00:55]} 31. Ne1 {[%emt 0:01:08]} Ba7 {[%emt 0:01:41]} 32. Bxa7 {[%emt 0:01:33]} Rxd2 {[%emt 0:00:30]} 33. Rxd2 {[%emt 0:00:00]} Rxd2 {[%emt 0:00:30]} 34. Qxd2 {[%emt 0:00:00]} Qxa7+ {[%emt 0:00:12]} 35. Kh2 {[%emt 0:00:05]} Bd5 {[%emt 0:00:48]} 36. Nc2 {[%emt 0:00:32]} Qb7 {[%emt 0:00:19]} 37. Ne3 {[%emt 0:00:58]} Qc6 {[%emt 0:00:34]} 38. Qd4 {[%emt 0:00:45]} Kd7 {[%emt 0:00:14]} 39. Qa7+ {[%emt 0:01:07]} Qb7 {[%emt 0:00:48]} 40. Qxb7+ {[%emt 0:00:30]} Bxb7 {[%emt 0:00:35]} 41. g4 {[%emt 0:00:00]} hxg4 {[%emt 0:00:13]} 42. hxg4 {[%emt 0:00:33]} Ke7 {[%emt 0:00:39]} 43. Kg3 {[%emt 0:01:03]} Be4 {[%emt 0:00:27]} 44. Kh4 {[%emt 0:00:26]} f6 {[%emt 0:00:27]} 45. g5 {[%emt 0:00:16]} f5 {[%emt 0:00:44]} 46. Kg3 {[%emt 0:00:28]} Kd7 {[%emt 0:00:29]} 47. Kf2 {[%emt 0:00:26]} Kc6 {[%emt 0:00:10]} 48. Nf1 {[%emt 0:00:12]} Kd5 {[%emt 0:00:35]} 49. Ng3 {[%emt 0:01:29]} Kc6 {[%emt 0:00:46]} 50. Nxe4 {[%emt 0:00:44]} fxe4 {[%emt 0:00:30]} 51. Ke2 {[%emt 0:00:08]} e3 {[%emt 0:00:17]} 52. Kxe3 {[%emt 0:00:27]} Kd5 {[%emt 0:00:04]} 53. Kf3 {[%emt 0:00:05]} Kc6 {[%emt 0:00:40]} 54. Ke4 {[%emt 0:00:11]} Kd7 {[%emt 0:00:10]} 55. Ke3 {[%emt 0:00:17]} Kc7 {[%emt 0:00:11]} 56. Kf3 {[%emt 0:00:12]} Kd7 {[%emt 0:00:19]} 57. Ke2 {[%emt 0:00:05]} Kc6 {[%emt 0:00:05]} 58. Kf3 {[%emt 0:00:09]} Kd7 {[%emt 0:00:13]} 59. Ke3 {[%emt 0:00:31]} Kc7 {[%emt 0:00:07]} 60. Ke4 {[%emt 0:00:11]} Kd7 {[%emt 0:01:17]} 61. Ke3 {[%emt 0:00:33]} Kc7 {[%emt 0:00:40]} 62. Kf3 {[%emt 0:00:09]} Kc6 {[%emt 0:00:08]} 63. Kg3 {[%emt 0:00:08]} Kd5 {[%emt 0:00:39]} 64. Kg4 {[%emt 0:00:11]} Ke4 {[%emt 0:01:19]} 65. Kg3 {[%emt 0:00:58]} Kf5 {[%emt 0:00:04]} 66. Kf3 {[%emt 0:00:26]} 1/2-1/2

[Event "White Rook U14 Final 2019"]
[Site "Sochi"]
[Date "2019.06.08"]
[Round "7.34"]
[White "Kostornichenko, Yana"]
[Black "Babeshko, Vitaliy"]
[Result "1/2-1/2"]
[ECO "C67"]
[WhiteElo "1706"]
[BlackElo "1331"]
[Annotator "NA"]
[PlyCount "85"]
[EventDate "2019.06.02"]
[EventCountry "RUS"]
[SourceTitle "playchess.com"]
[Source "ChessBase"]
[SourceQuality "1"]
[TimeControl "5400+30"]

1. e4 {[%emt 0:00:00]} e5 {[%emt 0:00:08]} 2. Nf3 {[%emt 0:00:08]} Nc6 {[%emt 0:00:00]} 3. Bb5 {[%emt 0:00:08]} Nf6 {[%emt 0:00:08]} 4. O-O {[%emt 0:00:00]} Nxe4 {[%emt 0:00:08]} 5. d4 {[%emt 0:00:32]} Nd6 {[%emt 0:00:16]} 6. Bxc6 {[%emt 0:00:08]} dxc6 {[%emt 0:00:08]} 7. dxe5 {[%emt 0:00:25]} Nf5 {[%emt 0:00:08]} 8. Qxd8+ {[%emt 0:01:05]} Kxd8 {[%emt 0:00:00]} 9. Bg5+ {[%emt 0:02:12]} Ke8 {[%emt 0:03:05]} 10. Nc3 {[%emt 0:00:40]} h6 {[%emt 0:00:33]} 11. Bf4 {[%emt 0:01:05]} Be6 {[%emt 0:02:37]} 12. g4 {[%emt 0:08:24]} Ne7 {[%emt 0:00:56]} 13. h3 {[%emt 0:00:24]} Nd5 {[%emt 0:03:05]} 14. Bd2 {[%emt 0:02:09]} Nxc3 {[%emt 0:04:16]} 15. Bxc3 {[%emt 0:00:08]} Bc5 {[%emt 0:00:08]} 16. Bd4 {[%emt 0:04:42]} Bd5 {[%emt 0:04:03]} 17. Bxc5 {[%emt 0:01:37]} Bxf3 {[%emt 0:06:10]} 18. Rfe1 {[%emt 0:00:25]} b6 {[%emt 0:00:40]} 19. Bb4 {[%emt 0:00:48]} c5 {[%emt 0:00:32]} 20. Bc3 {[%emt 0:00:24]} Rg8 {[%emt 0:09:28]} 21. Re3 {[%emt 0:00:24]} Bd5 {[%emt 0:00:17]} 22. f4 {[%emt 0:00:32]} g6 {[%emt 0:05:28]} 23. a3 {[%emt 0:01:03]} a5 {[%emt 0:04:04]} 24. Be1 {[%emt 0:03:00]} Kd7 {[%emt 0:07:33]} 25. Rd1 {[%emt 0:01:49]} Kc6 {[%emt 0:01:03]} 26. Red3 {[%emt 0:01:55]} Be6 {[%emt 0:00:42]} 27. Bg3 {[%emt 0:01:27]} b5 {[%emt 0:00:39]} 28. Bf2 {[%emt 0:04:44]} c4 {[%emt 0:02:47]} 29. Rd4 {[%emt 0:04:57]} b4 {[%emt 0:01:16]} 30. Kh2 {[%emt 0:04:05]} bxa3 {[%emt 0:02:25]} 31. bxa3 {[%emt 0:05:45]} Rab8 {[%emt 0:00:35]} 32. f5 {[%emt 0:01:17]} gxf5 {[%emt 0:01:51]} 33. gxf5 {[%emt 0:00:45]} Bxf5 {[%emt 0:00:07]} 34. Rxc4+ {[%emt 0:00:21]} Kb7 {[%emt 0:00:06]} 35. Bg3 {[%emt 0:01:21]} Be6 {[%emt 0:02:45]} 36. Ra4 {[%emt 0:01:40]} Ka6 {[%emt 0:01:23]} 37. Rad4 {[%emt 0:01:04]} Rb2 {[%emt 0:03:08]} 38. R1d2 {[%emt 0:00:50]} Bf5 {[%emt 0:00:38]} 39. Rc4 {[%emt 0:00:06]} Kb7 {[%emt 0:00:08]} 40. e6 {[%emt 0:00:30]} Bxe6 {[%emt 0:01:10]} 41. Rxc7+ {[%emt 0:03:09]} Kb6 {[%emt 0:03:33]} 42. Rc3 {[%emt 0:00:18]} Kb5 {[%emt 0:00:24]} 43. Be5 {[%emt 0:00:24]} 1/2-1/2

[Event "White Rook U14 Final 2019"]
[Site "Sochi"]
[Date "2019.06.08"]
[Round "7.35"]
[White "Eperin, Andrey"]
[Black "Abubekerov, Iliya"]
[Result "0-1"]
[ECO "C19"]
[WhiteElo "1288"]
[BlackElo "1199"]
[Annotator "NA"]
[PlyCount "116"]
[EventDate "2019.06.02"]
[EventCountry "RUS"]
[SourceTitle "playchess.com"]
[Source "ChessBase"]
[SourceQuality "1"]
[TimeControl "5400+30"]

1. e4 {[%emt 0:00:00]} e6 {[%emt 0:00:08]} 2. d4 {[%emt 0:00:08]} d5 {[%emt 0:00:00]} 3. Nc3 {[%emt 0:00:08]} Bb4 {[%emt 0:00:00]} 4. e5 {[%emt 0:00:16]} c5 {[%emt 0:00:00]} 5. a3 {[%emt 0:00:08]} Bxc3+ {[%emt 0:00:16]} 6. bxc3 {[%emt 0:00:08]} c4 {[%emt 0:00:08]} 7. Nf3 {[%emt 0:00:16]} Ne7 {[%emt 0:00:08]} 8. Be2 {[%emt 0:00:16]} Qa5 {[%emt 0:00:32]} 9. Bd2 {[%emt 0:00:25]} Nbc6 {[%emt 0:00:08]} 10. O-O {[%emt 0:00:16]} Bd7 {[%emt 0:00:33]} 11. Qc1 {[%emt 0:13:13]} O-O-O {[%emt 0:03:05]} 12. Qb2 {[%emt 0:04:51]} h5 {[%emt 0:01:52]} 13. Bg5 {[%emt 0:01:05]} Rdf8 {[%emt 0:00:32]} 14. Rfb1 {[%emt 0:02:31]} Qc7 {[%emt 0:00:41]} 15. h4 {[%emt 0:11:26]} Ng6 {[%emt 0:01:36]} 16. a4 {[%emt 0:05:15]} f6 {[%emt 0:01:04]} 17. Be3 {[%emt 0:02:00]} fxe5 {[%emt 0:00:17]} 18. dxe5 {[%emt 0:00:08]} b6 {[%emt 0:01:23]} 19. Bg5 {[%emt 0:20:54]} Ngxe5 {[%emt 0:08:28]} 20. Nxe5 {[%emt 0:00:00]} Qxe5 {[%emt 0:00:55]} 21. Bf3 {[%emt 0:01:10]} Qc7 {[%emt 0:06:33]} 22. Re1 {[%emt 0:05:51]} Ne5 {[%emt 0:04:41]} 23. Be2 {[%emt 0:00:23]} Rf5 {[%emt 0:02:17]} 24. Rf1 {[%emt 0:01:41]} Bc6 {[%emt 0:04:19]} 25. Qc1 {[%emt 0:03:30]} Nf7 {[%emt 0:02:09]} 26. f4 {[%emt 0:01:48]} Nxg5 {[%emt 0:00:46]} 27. hxg5 {[%emt 0:00:21]} Rhf8 {[%emt 0:00:45]} 28. g3 {[%emt 0:00:13]} g6 {[%emt 0:00:52]} 29. Qe3 {[%emt 0:00:07]} Bd7 {[%emt 0:04:01]} 30. Rf2 {[%emt 0:00:42]} Qc5 {[%emt 0:00:03]} 31. Qxc5+ {[%emt 0:00:03]} bxc5 {[%emt 0:01:25]} 32. a5 {[%emt 0:01:09]} Kc7 {[%emt 0:00:57]} 33. Rff1 {[%emt 0:00:14]} Rb8 {[%emt 0:00:34]} 34. Ra2 {[%emt 0:00:15]} Rff8 {[%emt 0:00:19]} 35. Rd1 {[%emt 0:00:19]} Rb7 {[%emt 0:00:13]} 36. Kg2 {[%emt 0:01:28]} Kc6 {[%emt 0:00:31]} 37. Bf3 {[%emt 0:01:41]} Kc7 {[%emt 0:01:28]} 38. Re1 {[%emt 0:00:44]} Rfb8 {[%emt 0:01:04]} 39. g4 {[%emt 0:00:43]} hxg4 {[%emt 0:00:26]} 40. Bxg4 {[%emt 0:01:03]} Kd6 {[%emt 0:00:32]} 41. Kf3 {[%emt 0:01:28]} Rb1 {[%emt 0:00:06]} 42. Re2 {[%emt 0:00:58]} Rf1+ {[%emt 0:00:12]} 43. Rf2 {[%emt 0:00:29]} Rbb1 {[%emt 0:00:46]} 44. Kg2 {[%emt 0:01:33]} Rg1+ {[%emt 0:01:01]} 45. Kh3 {[%emt 0:01:05]} Rge1 {[%emt 0:00:36]} 46. Kg3 {[%emt 0:01:21]} Rg1+ {[%emt 0:01:43]} 47. Kh3 {[%emt 0:03:18]} Rb8 {[%emt 0:00:20]} 48. Rg2 {[%emt 0:01:38]} Rxg2 {[%emt 0:01:05]} 49. Kxg2 {[%emt 0:00:20]} Rb1 {[%emt 0:00:05]} 50. Kf2 {[%emt 0:00:05]} a6 {[%emt 0:00:45]} 51. Ke2 {[%emt 0:00:24]} Bb5 {[%emt 0:00:20]} 52. Kf2 {[%emt 0:00:09]} Rh1 {[%emt 0:00:48]} 53. Bf3 {[%emt 0:00:33]} Rc1 {[%emt 0:01:03]} 54. Bg4 {[%emt 0:00:09]} d4 {[%emt 0:00:24]} 55. cxd4 {[%emt 0:01:37]} cxd4 {[%emt 0:00:36]} 56. Be2 {[%emt 0:00:05]} d3 {[%emt 0:00:27]} 57. cxd3 {[%emt 0:00:49]} cxd3 {[%emt 0:00:08]} 58. Rd2 {[%emt 0:00:04]} Rc2 {[%emt 0:00:08]} 0-1

[Event "White Rook U14 Final 2019"]
[Site "Sochi"]
[Date "2019.06.08"]
[Round "7.36"]
[White "Kulish, Glafira"]
[Black "Noyanzina, Sofia"]
[Result "1/2-1/2"]
[ECO "D36"]
[WhiteElo "1379"]
[BlackElo "1318"]
[Annotator "NA"]
[PlyCount "79"]
[EventDate "2019.06.02"]
[EventCountry "RUS"]
[SourceTitle "playchess.com"]
[Source "ChessBase"]
[SourceQuality "1"]
[TimeControl "5400+30"]

1. d4 {[%emt 0:00:00]} d5 {[%emt 0:00:00]} 2. c4 {[%emt 0:00:07]} e6 {[%emt 0:00:00]} 3. Nc3 {[%emt 0:00:09]} Nf6 {[%emt 0:00:08]} 4. cxd5 {[%emt 0:00:00]} exd5 {[%emt 0:00:08]} 5. Bg5 {[%emt 0:00:08]} Nbd7 {[%emt 0:00:08]} 6. e3 {[%emt 0:00:24]} c6 {[%emt 0:00:16]} 7. Qc2 {[%emt 0:00:00]} Be7 {[%emt 0:00:08]} 8. Bd3 {[%emt 0:00:32]} O-O {[%emt 0:00:08]} 9. Nge2 {[%emt 0:01:13]} Re8 {[%emt 0:00:08]} 10. O-O {[%emt 0:00:17]} Nf8 {[%emt 0:00:17]} 11. f3 {[%emt 0:03:40]} Be6 {[%emt 0:01:04]} 12. Rad1 {[%emt 0:04:13]} Nh5 {[%emt 0:12:59]} 13. Bxe7 {[%emt 0:01:12]} Qxe7 {[%emt 0:00:16]} 14. e4 {[%emt 0:05:45]} dxe4 {[%emt 0:01:12]} 15. fxe4 {[%emt 0:00:41]} Nf6 {[%emt 0:08:37]} 16. Nf4 {[%emt 0:04:42]} Bg4 {[%emt 0:00:48]} 17. Rde1 {[%emt 0:00:48]} Qb4 {[%emt 0:04:52]} 18. d5 {[%emt 0:02:10]} Qd4+ {[%emt 0:05:31]} 19. Qf2 {[%emt 0:05:22]} Qxf2+ {[%emt 0:02:05]} 20. Kxf2 {[%emt 0:00:48]} cxd5 {[%emt 0:02:37]} 21. Nfxd5 {[%emt 0:00:31]} Nxd5 {[%emt 0:10:49]} 22. Nxd5 {[%emt 0:00:23]} Rad8 {[%emt 0:03:08]} 23. Bb5 {[%emt 0:03:17]} Bd7 {[%emt 0:01:19]} 24. Bxd7 {[%emt 0:02:21]} Rxd7 {[%emt 0:01:35]} 25. Kg3 {[%emt 0:06:05]} Re5 {[%emt 0:04:21]} 26. a3 {[%emt 0:04:49]} f5 {[%emt 0:03:33]} 27. Nc3 {[%emt 0:00:19]} Rd3+ {[%emt 0:00:14]} 28. Rf3 {[%emt 0:02:29]} Rd2 {[%emt 0:02:49]} 29. Rxf5 {[%emt 0:02:16]} Rxf5 {[%emt 0:06:25]} 30. exf5 {[%emt 0:03:03]} Rxb2 {[%emt 0:00:12]} 31. a4 {[%emt 0:00:07]} Rb3 {[%emt 0:00:12]} 32. Re3 {[%emt 0:07:09]} Kf7 {[%emt 0:01:34]} 33. Kf4 {[%emt 0:00:07]} Rb2 {[%emt 0:00:33]} 34. Re2 {[%emt 0:00:12]} Rxe2 {[%emt 0:00:55]} 35. Nxe2 {[%emt 0:03:23]} Nd7 {[%emt 0:00:15]} 36. Nc3 {[%emt 0:00:51]} Nc5 {[%emt 0:00:06]} 37. Ke5 {[%emt 0:02:37]} Ke7 {[%emt 0:03:07]} 38. Nd5+ {[%emt 0:03:49]} Kf7 {[%emt 0:01:38]} 39. Nc3 {[%emt 0:02:04]} Ke7 {[%emt 0:04:08]} 40. Nd5+ {[%emt 0:02:25]} 1/2-1/2